bitfinex/quotes_SOLUSD_20260208
["timestamp","ask_amount","ask_price","bid_price","bid_amount"]
[1770570121886,11.5493489,86.585,86.491,37.97349193]
[1770570121887,0.47707307,86.581,86.503,0.46106094]
[1770570122070,0.47707307,86.581,86.516,0.46106094]
[1770570122568,0.47707307,86.581,86.495,0.46106094]
[1770570122772,0.47706524,86.58,86.491,32.61263005]
[1770570123073,5.60739026,86.575,86.491,32.61263005]
[1770570123390,0.47706524,86.57,86.479,11.563491]
[1770570123596,0.47706524,86.57,86.479,12.02455194]
[1770570124292,0.47706524,86.57,86.48,0.46106094]
[1770570124492,0.47705751,86.565,86.483,11.56290271]
[1770570125190,0.47704986,86.56,86.47,0.46106094]
[1770570125488,0.47704986,86.56,86.485,0.46106094]
[1770570125869,7.2295692,86.568,86.49,0.46106094]
[1770570125870,0.47704231,86.566,86.49,0.46106094]
[1770570126073,40.43111115,86.567,86.49,0.46106094]
[1770570126278,11.55174604,86.567,86.49,0.46106094]
[1770570127465,11.55054518,86.576,86.495,0.46106094]
[1770570128882,0.47702015,86.588,86.495,0.46106094]
[1770570129086,0.47702015,86.588,86.494,5.13032502]
[1770570129087,0.47702015,86.588,86.502,0.46106094]
[1770570129390,0.47702015,86.588,86.494,5.13032502]
[1770570129391,0.47702015,86.586,86.507,0.46106094]
[1770570131489,0.4770058,86.584,86.512,0.46106094]
[1770570132477,170.63836581,86.619,86.512,0.46106094]
[1770570132478,11.74873402,86.59,86.512,0.46106094]
[1770570133286,0.47699178,86.589,86.512,0.46106094]
[1770570133490,0.47699178,86.587,86.514,0.46106094]
[1770570135593,11.54921118,86.586,86.515,40.45541235]
[1770570135791,0.46828594,86.585,86.516,0.49102344]
[1770570137200,0.46828594,86.585,86.515,40.45541235]
[1770570137201,0.46828594,86.583,86.518,0.49102344]
[1770570137687,0.46828594,86.58,86.517,11.55842204]
[1770570138081,0.46828594,86.58,86.517,12.04944548]
[1770570138281,0.46828594,86.58,86.518,0.49102344]
[1770570139985,11.55014495,86.579,86.52,0.49102344]
[1770570140584,11.55014495,86.579,86.523,0.49102344]
[1770570141004,11.54911902,86.587,86.523,0.49102344]
[1770570141295,0.2,86.59,86.523,0.49102344]
[1770570142502,0.2,86.59,86.528,0.49102344]
[1770570144986,0.2,86.59,86.533,0.49102344]
[1770570149505,0.2,86.59,86.535,0.49102344]
[1770570151305,0.2,86.59,86.537,0.49102344]
[1770570151810,0.2,86.59,86.54,0.49102344]
[1770570153815,7.23836581,86.619,86.521,5.36086188]
[1770570153816,0.46828594,86.61,86.545,0.49102344]
[1770570156910,0.46828594,86.608,86.547,0.49102344]
[1770570158122,0.46828594,86.614,86.55,0.49102344]
[1770570159619,18.78317969,86.619,86.555,0.49102344]
[1770570159913,5.13032502,86.643,86.555,0.49102344]
[1770570159914,11.54406219,86.625,86.555,0.49102344]
[1770570160325,0.46828594,86.618,86.555,0.49102344]
[1770570161729,0.46828594,86.616,86.56,0.49102344]
[1770570163714,0.46828594,86.614,86.562,0.49102344]
[1770570165821,0.47126674,86.612,86.564,0.49264708]
[1770570166503,0.47126674,86.612,86.544,32.30141519]
[1770570166701,40.40963827,86.613,86.535,11.55596222]
[1770570166702,0.47126674,86.609,86.535,11.55596222]
[1770570166907,0.47126674,86.609,86.529,0.49264708]
[1770570166908,0.47126674,86.609,86.539,11.55543968]
[1770570167518,0.47126674,86.609,86.543,0.49264708]
[1770570167904,0.47126674,86.604,86.547,0.49264708]
[1770570170016,0.47126674,86.602,86.549,0.49264708]
[1770570170331,0.47126674,86.602,86.548,0.49264708]
[1770570172135,0.47126674,86.6,86.548,0.49264708]
[1770570172725,0.47126674,86.6,86.55,0.49264708]
[1770570173434,0.47126674,86.6,86.544,11.55474561]
[1770570173735,0.47126674,86.6,86.543,11.55492058]
[1770570173932,0.47126674,86.597,86.524,11.55741173]
[1770570174241,0.47126674,86.595,86.525,0.49264708]
[1770570174611,0.47126674,86.588,86.504,11.56008951]
[1770570174933,40.41757125,86.596,86.483,0.49264708]
[1770570174934,0.47126674,86.564,86.483,0.49264708]
[1770570175310,9.49456846,86.587,86.474,0.49264708]
[1770570175311,0.47126674,86.555,86.474,0.49264708]
[1770570175631,0.47126674,86.555,86.485,11.56263476]
[1770570175832,0.47126674,86.555,86.485,12.05528184]
[1770570176129,0.47126674,86.553,86.488,0.49264708]
[1770570176316,0.47126674,86.55,86.488,0.49264708]
[1770570178111,0.47126674,86.55,86.482,11.56302643]
[1770570178312,0.47126674,86.545,86.479,0.49264708]
[1770570178812,0.47126674,86.545,86.481,0.49264708]
[1770570179821,0.47126674,86.556,86.484,0.49264708]
[1770570180023,11.55334758,86.555,86.484,0.49264708]
[1770570180236,0.47126674,86.554,86.489,0.49264708]
[1770570180838,29.34897002,86.572,86.489,0.49264708]
[1770570181133,57.24621471,86.65,86.485,98.28293922]
[1770570181134,0.47126674,86.586,86.514,0.49264708]
[1770570181333,0.47126674,86.586,86.505,5.13032502]
[1770570181334,0.47126674,86.605,86.521,0.49264708]
[1770570182222,0.47126674,86.6,86.523,0.49264708]
[1770570183337,0.47126674,86.595,86.525,0.49264708]
[1770570184620,11.54747745,86.599,86.528,0.49264708]
[1770570184825,0.47126674,86.598,86.528,0.49264708]
[1770570185742,0.47126674,86.598,86.491,28.92946457]
[1770570185743,0.47126674,86.618,86.535,0.49264708]
[1770570187228,11.54481118,86.619,86.537,0.49264708]
[1770570187432,28.85743974,86.633,86.542,0.49264708]
[1770570187433,11.54460221,86.621,86.542,0.49264708]
[1770570187633,11.54460221,86.621,86.547,0.49264708]
[1770570188335,11.54381795,86.627,86.552,0.49264708]
[1770570190546,11.54310528,86.632,86.564,0.49264708]
[1770570190749,11.54376913,86.627,86.564,0.49264708]
[1770570191150,0.47126674,86.631,86.564,0.49264708]
[1770570191447,12.01450984,86.631,86.564,0.49264708]
[1770570191628,0.47126674,86.631,86.564,0.49264708]
[1770570191829,11.54261781,86.636,86.564,0.49264708]
[1770570192030,0.2,86.64,86.564,0.49264708]
[1770570192226,0.2,86.64,86.571,0.49264708]
[1770570192427,1e-08,86.64,86.59,5.13032502]
[1770570192642,1e-08,86.64,86.595,0.49264708]
[1770570193740,1e-08,86.64,86.604,0.49264708]
[1770570194050,1e-08,86.67,86.611,0.49264708]
[1770570194239,0.47126674,86.694,86.612,5.85350896]
[1770570194549,0.47126674,86.717,86.64,0.47672685]
[1770570194845,0.4611773,86.715,86.644,0.47672685]
[1770570195647,0.4579725,86.712,86.63,32.388743]
[1770570195952,0.4579725,86.712,86.631,0.49083081]
[1770570196649,0.4579725,86.703,86.63,32.388743]
[1770570196849,98.02677859,86.711,86.63,32.388743]
[1770570196850,0.4579725,86.695,86.63,32.388743]
[1770570197651,0.4579725,86.695,86.633,0.49083081]
[1770570197947,0.4579725,86.718,86.636,0.49083081]
[1770570198150,0.4579725,86.717,86.636,0.49083081]
[1770570198855,0.4579725,86.715,86.641,0.49083081]
[1770570199950,11.53123973,86.721,86.641,0.49083081]
[1770570200158,11.98921223,86.721,86.641,0.49083081]
[1770570200656,0.4579725,86.718,86.646,0.49083081]
[1770570201633,0.4579725,86.715,86.642,11.54174649]
[1770570201833,0.4579725,86.715,86.643,0.49083081]
[1770570202644,11.5321632,86.714,86.644,11.54148007]
[1770570202848,0.4579725,86.713,86.645,0.49083081]
[1770570204757,0.4579725,86.711,86.647,0.49083081]
[1770570205349,0.4579725,86.722,86.655,0.49083081]
[1770570205558,0.4579725,86.72,86.655,0.49083081]
[1770570206147,40.35931319,86.721,86.645,0.49083081]
[1770570206148,0.4579725,86.717,86.645,0.49083081]
[1770570206347,0.4579725,86.717,86.634,32.97206271]
[1770570206742,0.4579725,86.712,86.632,0.49083081]
[1770570207353,0.4579725,86.712,86.632,12.03381214]
[1770570207556,0.4579725,86.712,86.614,0.49083081]
[1770570207761,0.4579725,86.712,86.625,0.49083081]
[1770570208357,0.4579725,86.708,86.631,0.49083081]
[1770570208744,0.4579725,86.703,86.626,0.49083081]
[1770570208938,0.4579725,86.703,86.628,0.49083081]
[1770570209766,0.4579725,86.703,86.607,5.13032502]
[1770570209767,0.4579725,86.703,86.632,0.49083081]
[1770570209937,0.4579725,86.703,86.635,0.49083081]
[1770570210737,0.4579725,86.701,86.637,0.49083081]
[1770570211142,0.4579725,86.701,86.604,5.36086188]
[1770570211143,5.13032502,86.699,86.606,5.13032502]
[1770570211459,5.13032502,86.695,86.617,0.49083081]
[1770570211761,0.4579725,86.694,86.617,0.49083081]
[1770570212141,0.4579725,86.694,86.621,11.54447103]
[1770570212345,0.4579725,86.694,86.617,0.49083081]
[1770570212960,0.4579725,86.689,86.618,11.54494446]
[1770570213161,0.4579725,86.689,86.618,12.03577527]
[1770570213462,0.4579725,86.684,86.607,0.49083081]
[1770570213758,0.4579725,86.675,86.601,11.54717571]
[1770570213944,0.4579725,86.675,86.603,12.03765625]
[1770570214560,0.4579725,86.666,86.596,0.49083081]
[1770570214764,5.13032502,86.661,86.589,11.54869965]
[1770570215064,0.4579725,86.66,86.589,11.54869965]
[1770570215267,0.4579725,86.66,86.59,0.49083081]
[1770570216957,0.4579725,86.66,86.582,33.04375514]
[1770570216958,11.53948233,86.659,86.595,0.49083081]
[1770570217162,11.53861244,86.666,86.595,0.49083081]
[1770570217456,11.53786598,86.672,86.595,0.49083081]
[1770570217666,7.22591073,86.675,86.606,0.49083081]
[1770570217840,11.53748528,86.674,86.606,0.49083081]
[1770570218041,7.22591073,86.675,86.606,0.49083081]
[1770570218968,11.53647629,86.682,86.611,0.49083081]
[1770570219168,0.4579725,86.681,86.611,0.49083081]
[1770570220166,0.4579725,86.691,86.613,0.49083081]
[1770570220350,0.4579725,86.691,86.612,98.13882601]
[1770570220351,0.4579725,86.691,86.616,0.49083081]
[1770570220870,0.4579725,86.701,86.629,0.49083081]
[1770570222355,0.4579725,86.699,86.634,0.49083081]
[1770570222551,11.53306955,86.708,86.636,0.49083081]
[1770570222954,0.4579725,86.707,86.636,0.49083081]
[1770570224268,0.4579725,86.705,86.638,0.49083081]
[1770570225153,0.4579725,86.705,86.637,11.54241259]
[1770570225352,0.4579725,86.705,86.628,0.4556632]
[1770570225572,0.4579725,86.705,86.629,0.4556632]
[1770570225873,0.46174265,86.702,86.632,11.99869507]
[1770570226271,0.46174265,86.697,86.632,11.99869507]
[1770570226771,0.46174265,86.697,86.633,0.4556632]
[1770570228374,0.46174265,86.692,86.633,0.4556632]
[1770570228968,0.46174265,86.692,86.635,0.4556632]
[1770570230482,0.46174265,86.69,86.637,0.4556632]
[1770570231586,11.5352228,86.691,86.637,0.4556632]
[1770570232682,0.46174265,86.691,86.639,0.4556632]
[1770570232993,0.46174265,86.691,86.63,11.99895121]
[1770570233492,0.46174265,86.691,86.634,11.54277502]
[1770570233802,0.46174265,86.691,86.63,0.4556632]
[1770570234296,0.46174265,86.691,86.633,11.54287823]
[1770570234672,0.46174265,86.689,86.63,0.4556632]
[1770570234997,0.46174265,86.686,86.621,0.4556632]
[1770570235289,0.46174265,86.686,86.596,37.88752438]
[1770570235290,0.46174265,86.686,86.627,0.4556632]
[1770570235875,0.46174265,86.686,86.631,11.54321201]
[1770570236116,0.46174265,86.686,86.632,0.4556632]
[1770570237789,0.46174265,86.684,86.634,0.4556632]
[1770570238093,11.53602122,86.685,86.634,0.4556632]
[1770570238269,0.46174265,86.684,86.634,0.4556632]
[1770570238894,0.46174265,86.684,86.61,5.13032502]
[1770570239072,0.46174265,86.684,86.611,0.4556632]
[1770570239779,0.46174265,86.682,86.627,0.4556632]
[1770570240896,40.37700586,86.683,86.627,0.4556632]
[1770570241103,0.46174265,86.705,86.627,0.4556632]
[1770570241896,11.53322722,86.706,86.631,5.13032502]
[1770570242084,11.53322722,86.706,86.632,0.4556632]
[1770570242276,0.46174265,86.705,86.632,0.4556632]
[1770570244011,0.46174265,86.703,86.634,0.4556632]
[1770570244296,0.46174265,86.7,86.634,0.4556632]
[1770570244493,0.46174265,86.703,86.634,0.4556632]
[1770570246104,0.46174265,86.701,86.636,0.4556632]
[1770570248097,0.46174265,86.699,86.638,0.4556632]
[1770570250199,11.99603409,86.698,86.64,0.4556632]
[1770570250400,11.53358679,86.704,86.643,0.4556632]
[1770570250583,0.46174265,86.703,86.643,0.4556632]
[1770570252606,0.46174265,86.701,86.645,0.4556632]
[1770570255410,0.47122239,86.699,86.647,0.48170931]
[1770570257708,0.47122239,86.697,86.649,0.48170931]
[1770570259917,0.47122239,86.695,86.651,0.48170931]
[1770570263318,0.47122239,86.705,86.653,0.48170931]
[1770570265724,0.47122239,86.703,86.646,11.54120949]
[1770570265906,0.47122239,86.703,86.647,0.48170931]
[1770570266806,0.47122239,86.703,86.61,57.72997874]
[1770570266807,0.47122239,86.703,86.654,0.48170931]
[1770570268022,0.47122239,86.701,86.654,0.48170931]
[1770570268322,0.47122239,86.701,86.656,0.48170931]
[1770570269228,0.47122239,86.699,86.656,0.48170931]
[1770570269608,0.47122239,86.699,86.61,57.72997874]
[1770570269609,0.47122239,86.699,86.658,0.48170931]
[1770570270220,11.53402537,86.7,86.658,0.48170931]
[1770570270607,0.47122239,86.699,86.658,0.48170931]
[1770570271510,0.47122239,86.697,86.658,0.48170931]
[1770570271712,0.47122239,86.697,86.657,11.53974866]
[1770570271713,0.47122239,86.697,86.649,0.48170931]
[1770570271911,0.47122239,86.694,86.641,0.48170931]
[1770570272116,0.47122239,86.694,86.644,11.54141024]
[1770570272324,0.47122239,86.694,86.645,0.48170931]
[1770570273030,11.53429144,86.698,86.66,0.48170931]
[1770570273217,0.47122239,86.697,86.66,0.48170931]
[1770570274203,0.47122239,86.697,86.661,11.53921602]
[1770570274433,0.47122239,86.705,86.662,0.48170931]
[1770570276234,0.47122239,86.703,86.662,0.48170931]
[1770570276822,0.47122239,86.703,86.664,0.48170931]
[1770570278226,0.47122239,86.701,86.648,0.48170931]
[1770570279634,0.47122239,86.699,86.65,0.48170931]
[1770570280528,12.00451883,86.706,86.65,0.48170931]
[1770570280731,0.47122239,86.705,86.65,0.48170931]
[1770570281531,0.47122239,86.703,86.652,0.48170931]
[1770570283330,11.53349326,86.704,86.652,0.48170931]
[1770570284509,11.52937107,86.735,86.664,5.36086188]
[1770570284726,0.47122239,86.734,86.665,0.48170931]
[1770570285234,0.465762,86.731,86.665,0.48170931]
[1770570286339,0.465762,86.726,86.667,0.49369536]
[1770570287836,7.21810408,86.739,86.667,0.49369536]
[1770570288026,0.465762,86.736,86.67,0.49369536]
[1770570288342,0.465762,86.734,86.675,0.49369536]
[1770570288657,0.465762,86.738,86.675,0.49369536]
[1770570288940,0.465762,86.737,86.675,0.49369536]
[1770570289440,11.5289723,86.738,86.675,0.49369536]
[1770570290142,0.465762,86.737,86.675,0.49369536]
[1770570290339,7.21810408,86.739,86.671,40.38259625]
[1770570290340,0.465762,86.735,86.677,0.49369536]
[1770570294240,11.529504,86.734,86.678,11.53695286]
[1770570294442,11.529504,86.734,86.679,0.49369536]
[1770570295238,0.465762,86.733,86.679,0.49369536]
[1770570296419,11.52976986,86.732,86.681,0.49369536]
[1770570296924,11.5295213,86.734,86.681,0.49369536]
[1770570297851,0.465762,86.733,86.681,0.49369536]
[1770570298348,7.21810408,86.739,86.683,0.49369536]
[1770570298532,7.21810408,86.739,86.677,0.49369536]
[1770570298533,0.465762,86.737,86.677,0.49369536]
[1770570298847,0.465762,86.734,86.672,0.49369536]
[1770570299427,0.465762,86.734,86.664,0.49369536]
[1770570299637,0.465762,86.734,86.652,0.49369536]
[1770570299840,0.465762,86.734,86.659,0.49369536]
[1770570300230,0.465762,86.734,86.643,0.49369536]
[1770570300436,0.465762,86.729,86.643,0.49369536]
[1770570300630,0.465762,86.729,86.573,46.20326346]
[1770570300631,0.465762,86.729,86.653,0.49369536]
[1770570300834,0.465762,86.728,86.653,0.49369536]
[1770570301537,0.465762,86.732,86.658,0.49369536]
[1770570302647,11.5299028,86.731,86.663,0.49369536]
[1770570302856,0.465762,86.73,86.663,0.49369536]
[1770570303356,0.465762,86.727,86.663,0.49369536]
[1770570304035,0.465762,86.726,86.653,0.49369536]
[1770570304234,0.465762,86.726,86.657,0.49369536]
[1770570304554,40.35745171,86.725,86.659,11.53948233]
[1770570304850,0.465762,86.721,86.659,11.53948233]
[1770570305753,0.465762,86.716,86.659,0.49369536]
[1770570308679,0.465762,86.714,86.659,0.49369536]
[1770570311346,0.465762,86.712,86.661,0.49369536]
[1770570312863,11.53229619,86.713,86.661,0.49369536]
[1770570313050,11.53162296,86.719,86.661,0.49369536]
[1770570313251,11.53003574,86.73,86.663,0.49369536]
[1770570313551,11.99579774,86.73,86.663,0.49369536]
[1770570314149,11.53003574,86.73,86.663,0.49369536]
[1770570314350,7.21810408,86.739,86.679,0.49369536]
[1770570314939,7.21810408,86.739,86.681,5.85191414]
[1770570315141,0.2,86.74,86.689,0.49105226]
[1770570315341,0.4672944,86.779,86.694,0.49105226]
[1770570315540,0.4672944,86.778,86.704,0.49105226]
[1770570315866,0.4672944,86.775,86.691,0.49105226]
[1770570317663,0.4672944,86.77,86.693,0.49105226]
[1770570319672,0.4672944,86.768,86.697,5.13032502]
[1770570319851,0.4672944,86.768,86.698,0.49105226]
[1770570320162,0.4672944,86.777,86.702,5.13032502]
[1770570320371,11.99116366,86.777,86.71,0.49105226]
[1770570321146,0.73699998,86.789,86.71,0.49105226]
[1770570321466,11.52296433,86.784,86.71,0.49105226]
[1770570321679,0.4672944,86.779,86.715,0.49105226]
[1770570322263,0.4672944,86.776,86.715,0.49105226]
[1770570322746,0.4672944,86.776,86.703,0.49105226]
[1770570322949,0.4672944,86.776,86.705,11.53327836]
[1770570323465,0.4672944,86.776,86.706,0.49105226]
[1770570323964,0.4672944,86.771,86.707,11.53309421]
[1770570324163,0.4672944,86.771,86.708,0.49105226]
[1770570325167,11.52405646,86.775,86.708,0.49105226]
[1770570325344,0.4672944,86.778,86.711,0.49105226]
[1770570325867,11.52379086,86.777,86.712,40.36350216]
[1770570326061,11.52379086,86.777,86.713,0.49105226]
[1770570326268,0.6672944,86.79,86.72,0.49105226]
[1770570326567,0.4672944,86.788,86.72,0.49105226]
[1770570328367,11.98975744,86.787,86.725,0.49105226]
[1770570329275,0.4672944,86.786,86.725,0.49105226]
[1770570330257,11.52272858,86.785,86.727,0.49105226]
[1770570330460,0.4672944,86.784,86.73,0.49105226]
[1770570330961,0.4672944,86.781,86.713,0.49105226]
[1770570331174,0.4672944,86.781,86.707,11.53302552]
[1770570331549,0.4672944,86.781,86.706,11.53319975]
[1770570332168,0.4672944,86.781,86.704,0.49105226]
[1770570332372,0.4672944,86.764,86.696,44.53474645]
[1770570332573,0.4672944,86.764,86.697,0.49105226]
[1770570334675,0.4672944,86.762,86.699,0.49105226]
[1770570336673,0.4672944,86.76,86.701,0.49105226]
[1770570339177,40.34163602,86.759,86.702,11.53375931]
[1770570339358,0.4672944,86.755,86.696,33.0003046]
[1770570340766,0.4672944,86.755,86.684,0.49105226]
[1770570341266,0.4672944,86.75,86.689,0.49105226]
[1770570343374,0.4672944,86.745,86.691,0.49105226]
[1770570344857,11.5275104,86.749,86.691,0.49105226]
[1770570345459,11.5275104,86.749,86.693,0.45067912]
[1770570346475,11.98906179,86.749,86.693,0.45067912]
[1770570346669,0.46155139,86.748,86.693,0.45067912]
[1770570347475,0.46155139,86.745,86.693,0.45067912]
[1770570347675,5.13032502,86.741,86.693,0.45067912]
[1770570347980,0.46155139,86.74,86.693,0.45067912]
[1770570349283,11.52817485,86.744,86.695,0.45067912]
[1770570350489,0.46155139,86.761,86.697,0.45067912]
[1770570351480,0.46155139,86.758,86.697,0.45067912]
[1770570352593,0.46155139,86.753,86.699,0.45067912]
[1770570354268,0.46155139,86.753,86.69,0.45067912]
[1770570354668,0.46155139,86.753,86.638,5.36086188]
[1770570354669,0.46155139,86.748,86.681,0.45067912]
[1770570354989,0.46155139,86.748,86.673,11.53751528]
[1770570355186,0.46155139,86.748,86.674,0.45067912]
[1770570356789,0.46155139,86.743,86.676,0.45067912]
[1770570359479,0.46155139,86.738,86.678,0.45067912]
[1770570360487,0.46155139,86.741,86.678,0.45067912]
[1770570361793,0.46155139,86.741,86.662,0.45067912]
[1770570361994,0.46155139,86.736,86.665,0.45067912]
[1770570362188,0.46155139,86.736,86.669,0.45067912]
[1770570362891,0.46155139,86.736,86.672,0.45067912]
[1770570364300,0.46155139,86.731,86.672,0.45067912]
[1770570364488,0.46155139,86.731,86.663,0.45067912]
[1770570365491,0.46155139,86.726,86.663,0.45067912]
[1770570366295,0.46155139,86.726,86.659,11.53946128]
[1770570366497,0.46155139,86.726,86.66,0.45067912]
[1770570366796,0.46155139,86.726,86.652,0.45067912]
[1770570368402,0.46155139,86.724,86.64,0.45067912]
[1770570368606,0.46155139,86.721,86.64,0.45067912]
[1770570369606,0.46155139,86.721,86.652,0.45067912]
[1770570370102,0.46155139,86.721,86.641,0.45067912]
[1770570370402,0.46155139,86.721,86.645,0.45067912]
[1770570370603,0.46155139,86.716,86.647,0.45067912]
[1770570372402,40.36164028,86.716,86.649,0.45067912]
[1770570374410,5.13032502,86.711,86.651,0.45067912]
[1770570374614,0.2148728,86.71,86.651,0.45067912]
[1770570375805,5.13032502,86.706,86.653,0.48806307]
[1770570378404,11.53336024,86.705,86.655,0.48806307]
[1770570378610,11.74823088,86.705,86.655,0.48806307]
[1770570379912,0.21486995,86.704,86.655,0.48806307]
[1770570381015,11.53362628,86.703,86.656,11.53988183]
[1770570381215,11.53362628,86.703,86.657,0.48806307]
[1770570381416,0.21486961,86.702,86.657,0.48806307]
[1770570383614,11.74876129,86.701,86.659,0.48806307]
[1770570384202,0.21486862,86.7,86.659,0.48806307]
[1770570385009,11.53389234,86.701,86.659,0.48806307]
[1770570385205,29.04212951,86.724,86.659,0.48806307]
[1770570385410,28.82726121,86.724,86.659,0.48806307]
[1770570385594,0.2148683,86.763,86.663,0.48806307]
[1770570386108,0.21486798,86.76,86.663,0.48806307]
[1770570386506,0.21486798,86.76,86.668,0.48806307]
[1770570387603,0.21486766,86.771,86.675,0.48806307]
[1770570389120,0.21486705,86.769,86.679,5.13032502]
[1770570389920,11.52472052,86.77,86.687,5.13032502]
[1770570390616,11.52472052,86.77,86.677,0.48806307]
[1770570390617,11.52325969,86.781,86.695,5.13032502]
[1770570390822,0.21486674,86.795,86.699,5.13032502]
[1770570391114,28.79569293,86.819,86.716,98.02112641]
[1770570391115,11.52130112,86.796,86.716,98.02112641]
[1770570391320,11.52130112,86.796,86.72,0.48806307]
[1770570392314,11.52031415,86.804,86.725,0.48806307]
[1770570393421,0.2,86.82,86.727,0.48806307]
[1770570393624,0.2,86.82,86.738,0.48806307]
[1770570393826,11.51911803,86.813,86.738,0.48806307]
[1770570394007,11.93440846,86.809,86.738,0.48806307]
[1770570394320,0.41486556,86.808,86.738,0.48806307]
[1770570395520,0.41486556,86.808,86.743,0.48806307]
[1770570396024,11.51861922,86.816,86.743,0.48806307]
[1770570396315,0.2,86.82,86.745,0.48806307]
[1770570397127,0.2,86.82,86.748,0.48806307]
[1770570397629,0.2,86.82,86.756,0.48806307]
[1770570397805,0.41486443,86.818,86.756,0.48806307]
[1770570398317,0.2,86.82,86.756,0.48806307]
[1770570399425,0.2,86.82,86.759,0.48806307]
[1770570399625,0.2,86.82,86.764,0.48806307]
[1770570400930,0.47589088,86.819,86.764,0.48806307]
[1770570401254,0.2,86.82,86.764,0.48806307]
[1770570401707,0.2,86.82,86.766,0.48806307]
[1770570402114,0.2,86.82,86.766,0.39806307]
[1770570402610,0.67589088,86.82,86.766,0.39806307]
[1770570402804,0.2,86.82,86.766,0.39806307]
[1770570403708,0.2,86.82,86.767,40.33791648]
[1770570404007,0.2,86.82,86.768,0.48806307]
[1770570404820,0.47589088,86.838,86.775,0.48806307]
[1770570406726,0.47589088,86.838,86.78,0.48167436]
[1770570407026,0.2,86.84,86.78,0.48167436]
[1770570407730,0.2,86.84,86.785,0.48167436]
[1770570408430,0.45865265,86.854,86.786,0.48167436]
[1770570408931,0.45865265,86.854,86.791,0.48167436]
[1770570409631,0.2,86.86,86.795,0.48167436]
[1770570409815,0.45865265,86.855,86.795,0.48167436]
[1770570411429,0.45865265,86.847,86.797,0.48167436]
[1770570412229,0.2707205,86.848,86.8,0.48167436]
[1770570413018,0.45865265,86.847,86.8,0.48167436]
[1770570413329,0.2707205,86.848,86.8,0.48167436]
[1770570413530,0.2707205,86.848,86.796,97.93078021]
[1770570413531,0.45865265,86.847,86.801,11.5206046]
[1770570414331,0.45865265,86.846,86.796,11.52122607]
[1770570414532,0.45865265,86.846,86.801,0.48167436]
[1770570415619,0.45865265,86.844,86.802,11.52047187]
[1770570415936,0.45865265,86.844,86.796,11.52121669]
[1770570416138,0.45865265,86.844,86.8,11.52066383]
[1770570416638,0.45865265,86.844,86.794,11.52149182]
[1770570417245,0.45865265,86.844,86.775,0.48167436]
[1770570417545,0.45865265,86.841,86.775,0.48167436]
[1770570417722,0.45865265,86.836,86.777,0.48167436]
[1770570420347,0.45865265,86.834,86.778,11.52365807]
[1770570420533,0.45865265,86.834,86.779,0.48167436]
[1770570420740,7.21828852,86.847,86.782,0.48167436]
[1770570420741,0.45865265,86.844,86.782,0.48167436]
[1770570422437,0.45865265,86.842,86.784,0.48167436]
[1770570424040,0.45865265,86.839,86.775,12.00562874]
[1770570424541,5.13032502,86.835,86.775,12.00562874]
[1770570424734,0.45865265,86.834,86.775,12.00562874]
[1770570424935,0.45865265,86.834,86.775,11.52395438]
[1770570426042,0.45865265,86.834,86.736,5.13032502]
[1770570426043,0.45865265,86.834,86.746,0.48167436]
[1770570426247,0.45865265,86.834,86.761,0.48167436]
[1770570426451,0.45865265,86.834,86.766,0.48167436]
[1770570426644,0.45865265,86.829,86.779,0.48167436]
[1770570428736,0.45865265,86.827,86.781,0.48167436]
[1770570429338,11.51628605,86.834,86.781,0.48167436]
[1770570429539,11.9749387,86.834,86.781,0.48167436]
[1770570430231,0.45865265,86.833,86.781,0.48167436]
[1770570430642,11.51649161,86.832,86.783,0.48167436]
[1770570430835,0.45865265,86.831,86.783,0.48167436]
[1770570432235,0.45865265,86.843,86.783,0.48167436]
[1770570432549,0.45865265,86.843,86.786,0.48167436]
[1770570432752,11.78513771,86.848,86.785,5.13032502]
[1770570432753,0.45865265,86.846,86.788,0.48167436]
[1770570432950,0.45865265,86.845,86.787,11.52246304]
[1770570433250,0.45865265,86.845,86.788,0.48167436]
[1770570433543,0.45865265,86.845,86.756,5.13032502]
[1770570433544,0.45865265,86.842,86.769,0.48167436]
[1770570433759,0.45865265,86.842,86.77,11.52460528]
[1770570434134,0.45865265,86.842,86.769,0.48167436]
[1770570434733,40.30354325,86.841,86.769,0.48167436]
[1770570434936,0.48623395,86.837,86.762,0.47476856]
[1770570435541,0.48623395,86.837,86.754,0.47476856]
[1770570435731,0.48623395,86.837,86.744,0.47476856]
[1770570435932,0.48623395,86.833,86.755,12.00145592]
[1770570436234,0.48623395,86.832,86.744,0.47476856]
[1770570436539,0.48623395,86.827,86.744,0.47476856]
[1770570436738,0.48623395,86.823,86.744,0.47476856]
[1770570437038,0.48623395,86.818,86.715,0.47476856]
[1770570437354,0.48623395,86.81,86.734,0.47476856]
[1770570437560,0.48623395,86.81,86.69,0.2]
[1770570437561,0.48623395,86.806,86.724,0.47476856]
[1770570437856,0.48623395,86.805,86.724,0.47476856]
[1770570438043,0.48623395,86.801,86.724,0.47476856]
[1770570438243,0.48623395,86.8,86.724,0.47476856]
[1770570438455,0.48623395,86.796,86.69,0.2]
[1770570438774,0.48623395,86.795,86.715,0.47476856]
[1770570438943,0.48623395,86.79,86.715,0.47476856]